fUST/lending_fUST_20241218
["ID","MTS","AMOUNT","RATE_DAILY","PERIOD"]
[345814918,1734496237568,-569.16,0.00024657,6]
[345814919,1734496237578,-605.25,0.00024657,6]
[345814921,1734496237587,-675.02,0.00024657,6]
[345814923,1734496237597,-500.0,0.00024657,6]
[345814925,1734496237606,-793.61526084,0.00024657,6]
[345814929,1734496237694,-41.58473916,0.00024657,6]
[345814930,1734496237704,-500.0,0.00024657,6]
[345814931,1734496237713,-500.0,0.00024657,6]
[345814932,1734496237722,-500.0,0.00024657,6]
[345814933,1734496237731,-500.0,0.00024657,6]
[345814942,1734496237894,-500.0,0.00024657,6]
[345814943,1734496237903,-500.0,0.00024657,6]
[345814944,1734496237913,-500.0,0.00024657,6]
[345814945,1734496237922,-937.86,0.00024657,6]
[345814946,1734496237931,-695.75,0.00024657,6]
[345814947,1734496237941,-500.0,0.00024657,6]
[345814948,1734496237950,-500.0,0.00024657,6]
[345814949,1734496237959,-500.0,0.00024657,6]
[345814950,1734496237969,-624.24,0.00024657,6]
[345814951,1734496237978,-500.0,0.00024657,6]
[345814952,1734496237987,-614.97112189,0.00024657,6]
[345814953,1734496237997,-500.0,0.00024657,6]
[345814954,1734496238007,-500.0,0.00024657,6]
[345814955,1734496238017,-500.0,0.00024657,6]
[345814956,1734496238028,-500.0,0.00024657,6]
[345814958,1734496238038,-500.0,0.00024657,2]
[345814960,1734496238047,-500.0,0.00024657,6]
[345814961,1734496238061,-500.0,0.00024657,6]
[345814963,1734496238070,-500.0,0.00024657,6]
[345814966,1734496238080,-500.0,0.00024657,6]
[345814968,1734496238089,-2345.1,0.00024657,6]
[345814970,1734496238100,-511.94,0.00024657,6]
[345814972,1734496238110,-500.0,0.00024657,6]
[345814973,1734496238119,-1072.93,0.00024657,2]
[345814975,1734496238130,-500.0,0.00024657,6]
[345814977,1734496238139,-1503.16,0.00024657,6]
[345814979,1734496238148,-500.0,0.00024657,6]
[345814981,1734496238158,-500.0,0.00024657,6]
[345814983,1734496238167,-315.88615417,0.00024657,6]
[345814985,1734496238177,-500.0,0.00024657,6]
[345814987,1734496238187,-159.241438,0.00024657,7]
[345814989,1734496238196,-500.0,0.00024657,6]
[345814991,1734496238205,-159.241438,0.00024657,7]
[345814993,1734496238215,-159.241438,0.00024657,7]
[345814995,1734496238225,-159.241438,0.00024657,7]
[345814997,1734496238234,-159.241438,0.00024657,7]
[345814999,1734496238243,-159.241438,0.00024657,7]
[345815001,1734496238252,-159.241438,0.00024657,7]
[345815003,1734496238261,-159.241438,0.00024657,7]
[345815005,1734496238279,-159.241438,0.00024657,7]
[345815007,1734496238288,-500.0,0.00024657,6]
[345815009,1734496238298,-159.241438,0.00024657,7]
[345815011,1734496238308,-500.0,0.00024657,6]
[345815014,1734496238317,-500.0,0.00024657,6]
[345815015,1734496238328,-159.241438,0.00024657,7]
[345815018,1734496238337,-159.241438,0.00024657,7]
[345815020,1734496238347,-159.241438,0.00024657,7]
[345815022,1734496238357,-159.241438,0.00024657,7]
[345815024,1734496238366,-159.241438,0.00024657,7]
[345815026,1734496238376,-159.241438,0.00024657,7]
[345815028,1734496238385,-576.67,0.00024657,6]
[345815030,1734496238394,-159.241438,0.00024657,7]
[345815032,1734496238403,-159.241438,0.00024657,7]
[345815033,1734496238412,-159.241438,0.00024657,7]
[345815035,1734496238421,-159.241438,0.00024657,7]
[345815038,1734496238430,-852.22,0.00024657,6]
[345815039,1734496238439,-500.0,0.00024657,6]
[345815042,1734496238449,-500.0,0.00024657,6]
[345815043,1734496238462,-1270.16,0.00024657,6]
[345815045,1734496238471,-1210.65,0.00024657,6]
[345815048,1734496238481,-1274.91,0.00024657,6]
[345815049,1734496238491,-500.0,0.00024657,6]
[345815051,1734496238500,-500.0,0.00024657,6]
[345815054,1734496238511,-745.54,0.00024657,6]
[345815056,1734496238524,-2712.68,0.00024657,2]
[345815057,1734496238533,-505.33585249,0.00024657,6]
[345815059,1734496238542,-500.0,0.00024657,6]
[345815061,1734496238551,-507.60447662,0.00024657,6]
[345815064,1734496238562,-3859.18,0.00024657,6]
[345815066,1734496238571,-500.0,0.00024657,6]
[345815068,1734496238580,-500.0,0.00024657,6]
[345815069,1734496238589,-500.0,0.00024657,6]
[345815072,1734496238599,-500.0,0.00024657,6]
[345815074,1734496238608,-500.0,0.00024657,6]
[345815076,1734496238617,-500.0,0.00024657,6]
[345815078,1734496238626,-2442.58,0.00024657,6]
[345815079,1734496238635,-593.12,0.00024657,6]
[345815082,1734496238645,-500.0,0.00024657,6]
[345815084,1734496238654,-478.40885411,0.00024657,6]
[345815086,1734496238663,-614.03,0.00024657,6]
[345815088,1734496238672,-500.0,0.00024657,6]
[345815090,1734496238682,-500.0,0.00024657,6]
[345815092,1734496238691,-500.0,0.00024657,6]
[345815094,1734496238700,-500.0,0.00024657,6]
[345815096,1734496238708,-500.0,0.00024657,6]
[345815098,1734496238717,-2794.76,0.00024657,6]
[345815100,1734496238727,-500.0,0.00024657,6]
[345815102,1734496238736,-500.0,0.00024657,6]
[345815104,1734496238745,-1049.56,0.00024657,6]
[345815105,1734496238755,-500.0,0.00024657,6]
[345815107,1734496238764,-500.0,0.00024657,6]
[345815109,1734496238781,-696.16,0.00024657,6]
[345815112,1734496238790,-150.5159041,0.00024657,6]
[345815113,1734496238800,-500.0,0.00024657,6]
[345815116,1734496238811,-500.0,0.00024657,6]
[345815118,1734496238820,-572.5,0.00024657,6]
[345815120,1734496238830,-3000.9497176,0.00024657,6]
[345815153,1734496239151,-1828.73,0.000241,2]
[345815155,1734496239161,-59582.1602824,0.00024657,6]
[345815157,1734496239171,-885.48,0.00024657,6]
[345815159,1734496239181,-500.0,0.00024657,6]
[345815161,1734496239191,-500.0,0.00024657,6]
[345815163,1734496239200,-500.0,0.00024657,6]
[345815165,1734496239210,-500.0,0.00024657,6]
[345815167,1734496239219,-500.0,0.00024657,6]
[345815169,1734496239229,-536.23684017,0.00024657,6]
[345815171,1734496239239,-641.72,0.00024657,6]
[345815173,1734496239247,-500.0,0.00024657,6]
[345815175,1734496239257,-8104.2,0.00024657,6]
[345815177,1734496239272,-500.0,0.00024657,6]
[345815179,1734496239281,-500.0,0.00024657,6]
[345815181,1734496239291,-4664.95,0.00024657,6]
[345815183,1734496239301,-262.5774691,0.00024657,6]
[345815185,1734496239311,-499.32055563,0.00024657,6]
[345815187,1734496239320,-500.0,0.00024657,6]
[345815189,1734496239330,-6615.24,0.00024657,6]
[345815191,1734496239339,-500.0,0.00024657,6]
[345815193,1734496239348,-4769.03,0.00024657,6]
[345815195,1734496239358,-1509.27,0.00024657,6]
[345815197,1734496239378,-500.0,0.00024657,6]
[345815199,1734496239388,-500.0,0.00024657,6]
[345815201,1734496239397,-500.0,0.00024657,6]
[345815203,1734496239406,-4669.67,0.00024657,6]
[345815205,1734496239416,-1934.51,0.00024657,6]
[345815207,1734496239428,-500.0,0.00024657,6]
[345815209,1734496239441,-503.88405884,0.00024657,6]
[345815211,1734496239453,-500.0,0.00024657,6]
[345815213,1734496239462,-500.0,0.00024657,6]
[345815215,1734496239474,-1017.94,0.00024657,6]
[345815217,1734496239483,-500.0,0.00024657,6]
[345815219,1734496239493,-500.0,0.00024657,6]
[345815221,1734496239502,-452.13236067,0.00024657,6]
[345815223,1734496239512,-500.0,0.00024657,6]
[345815225,1734496239524,-5124.85,0.00024657,6]
[345815227,1734496239534,-500.0,0.00024657,6]
[345815229,1734496239544,-500.0,0.00024657,6]
[345815231,1734496239553,-500.0,0.00024657,6]
[345815233,1734496239563,-500.0,0.00024657,6]
[345815235,1734496239572,-505.97780176,0.00024657,6]
[345815237,1734496239581,-678.48,0.00024657,6]
[345815239,1734496239591,-500.0,0.00024657,6]
[345815241,1734496239600,-500.0,0.00024657,2]
[345815243,1734496239610,-500.0,0.00024657,6]
[345815245,1734496239619,-500.0,0.00024657,6]
[345815247,1734496239628,-500.0,0.00024657,6]
[345815249,1734496239637,-500.0,0.00024657,6]
[345815251,1734496239646,-500.0,0.00024657,6]
[345815253,1734496239655,-500.0,0.00024657,6]
[345815255,1734496239664,-500.0,0.00024657,6]
[345815257,1734496239673,-515.92474432,0.00024657,6]
[345815259,1734496239683,-500.0,0.00024657,6]
[345815261,1734496239692,-500.0,0.00024657,6]
[345815263,1734496239701,-500.0,0.00024657,6]
[345815265,1734496239711,-500.0,0.00024657,6]
[345815267,1734496239720,-500.0,0.00024657,6]
[345815269,1734496239729,-500.0,0.00024657,6]
[345815271,1734496239738,-237.60176135,0.00024657,6]
[345815273,1734496239747,-848.27,0.00024657,6]
[345815275,1734496239756,-500.0,0.00024657,6]
[345815277,1734496239766,-500.0,0.00024657,6]
[345815279,1734496239779,-599.68,0.00024657,6]
[345815281,1734496239788,-500.0,0.00024657,6]
[345815283,1734496239797,-6007.48,0.00024657,6]
[345815285,1734496239807,-500.0,0.00024657,6]
[345815287,1734496239816,-500.0,0.00024657,6]
[345815289,1734496239825,-500.0,0.00024657,6]
[345815291,1734496239835,-680.92,0.00024657,6]
[345815293,1734496239845,-500.0,0.00024657,6]
[345815295,1734496239854,-175.47299201,0.00024657,2]
[345815298,1734496239868,-514.74700799,0.00024657,2]
[345815300,1734496239878,-2177.69299201,0.00024657,6]
[345815304,1734496239910,-1088.31206136,0.00024657,6]
[345815306,1734496239922,-320.40494663,0.00024657,6]
[345815308,1734496239931,-476.30817327,0.00024657,6]
[345815310,1734496239941,-500.0,0.00024657,6]
[345815312,1734496239950,-64.24137495,0.00024657,6]
[345815317,1734496240106,-435.75862505,0.00024657,6]
[345815319,1734496240116,-500.0,0.00024657,6]
[345815321,1734496240126,-107.94137495,0.00024657,6]
[345815903,1734496245959,-151.0,0.00024656,2]
[345815905,1734496245969,-517.51862505,0.00024657,6]
[345815906,1734496245979,-772.057338,0.00024657,7]
[345815907,1734496245988,-772.057338,0.00024657,7]
[345815909,1734496245998,-500.0,0.00024657,6]
[345815911,1734496246008,-772.057338,0.00024657,7]
[345815912,1734496246017,-772.057338,0.00024657,7]
[345815914,1734496246030,-772.057338,0.00024657,7]
[345815915,1734496246039,-772.057338,0.00024657,7]
[345815917,1734496246048,-722.2,0.00024657,6]
[345815918,1734496246062,-772.057338,0.00024657,7]
[345815920,1734496246072,-772.057338,0.00024657,7]
[345815921,1734496246081,-772.057338,0.00024657,7]
[345815923,1734496246090,-772.057338,0.00024657,7]
[345815924,1734496246099,-772.057338,0.00024657,7]
[345815926,1734496246108,-772.057338,0.00024657,7]
[345815927,1734496246118,-772.057338,0.00024657,7]
[345815929,1734496246128,-772.057338,0.00024657,7]
[345815930,1734496246138,-525.59352445,0.00024657,6]
[345815932,1734496246148,-772.057338,0.00024657,7]
[345815933,1734496246157,-772.057338,0.00024657,7]
[345815935,1734496246167,-772.057338,0.00024657,7]
[345815937,1734496246177,-73.7131045,0.00024657,6]
[345815938,1734496246188,-1787.6268955,0.00024657,6]
[345815940,1734496246198,-772.057338,0.00024657,7]
[345815941,1734496246207,-772.057338,0.00024657,7]
[345815943,1734496246216,-181.38280327,0.00024657,7]
[345824067,1734496529016,325.508322,0.00013973,2]
[345824076,1734496700639,1000.0,0.0002,2]
[345824077,1734496734044,13900.0,0.0002,2]
[345824157,1734497432378,-325.508322,0.00020447,2]
[345824159,1734497432388,-166.0,0.00022,2]
[345824161,1734497432399,-172.274652,0.00022627,2]
[345824163,1734497432409,-294.5252103,0.00022901,2]
[345824165,1734497432419,-300.0,0.00022999,2]
[345824167,1734497432429,-300.0,0.00022999,2]
[345824169,1734497432439,-9525.9847889,0.00023,2]
[345824171,1734497432449,-166.0,0.00023014,2]
[345824174,1734497432458,-736.3670138,0.00023043,2]
[345824176,1734497432469,-406.974,0.0002343,2]
[345824178,1734497432478,-22671.50732031,0.00024,3]
[345824179,1734497432491,-1049.50494912,0.0002417,2]
[345824181,1734497432501,-386.0,0.0002427,13]
[345824184,1734497432511,-1049.50494906,0.00024486,2]
[345824186,1734497432520,-1645.86,0.000245,2]
[345824187,1734497432530,-346.0,0.000245,11]
[345824190,1734497432543,-151.0,0.00024656,2]
[345824191,1734497432552,-500.0,0.00024656,2]
[345824194,1734497432562,-500.0,0.00024656,2]
[345824195,1734497432572,-500.0,0.00024656,2]
[345824197,1734497432582,-3894.5,0.00024656,2]
[345824200,1734497432592,-500.0,0.00024657,6]
[345824202,1734497432601,-500.0,0.00024657,6]
[345824204,1734497432611,-500.0,0.00024657,6]
[345824206,1734497432620,-500.0,0.00024657,6]
[345824208,1734497432629,-216.31983927,0.00024657,6]
[345824210,1734497432639,-500.0,0.00024657,6]
[345824212,1734497432648,-500.0,0.00024657,6]
[345824214,1734497432657,-500.0,0.00024657,6]
[345824216,1734497432667,-500.0,0.00024657,6]
[345824218,1734497432677,-500.0,0.00024657,6]
[345824220,1734497432686,-500.0,0.00024657,6]
[345824222,1734497432696,-500.0,0.00024657,6]
[345824224,1734497432706,-500.0,0.00024657,6]
[345824226,1734497432715,-500.0,0.00024657,6]
[345824228,1734497432724,-16.16895524,0.00024657,6]
[345824230,1734497432739,-483.83104476,0.00024657,6]
[345824232,1734497432748,-308.8129844,0.00024657,6]
[345824234,1734497432758,-463.05186247,0.00024657,6]
[345824236,1734497432767,-500.0,0.00024657,6]
[345824238,1734497432776,-500.0,0.00024657,6]
[345824240,1734497432785,-500.3791067,0.00024657,6]
[345824242,1734497432795,-456.09263396,0.00024657,6]
[345824244,1734497432804,-500.0,0.00024657,6]
[345824246,1734497432814,-500.0,0.00024657,6]
[345824248,1734497432823,-500.0,0.00024657,6]
[345824250,1734497432833,-500.0,0.00024657,6]
[345824252,1734497432842,-500.0,0.00024657,6]
[345824254,1734497432851,-500.0,0.00024657,6]
[345824256,1734497432861,-500.0,0.00024657,6]
[345824258,1734497432870,-500.0,0.00024657,6]
[345824260,1734497432879,-500.0,0.00024657,6]
[345824262,1734497432889,-500.0,0.00024657,6]
[345824264,1734497432898,-500.0,0.00024657,6]
[345824266,1734497432907,-500.0,0.00024657,6]
[345824268,1734497432916,-500.0,0.00024657,6]
[345824270,1734497432926,-1789.79,0.00024657,6]
[345824272,1734497432935,-500.0,0.00024657,6]
[345824274,1734497432944,-758.95,0.00024657,6]
[345824276,1734497432953,-500.0,0.00024657,6]
[345824278,1734497432962,-500.0,0.00024657,6]
[345824280,1734497432972,-500.0,0.00024657,6]
[345824282,1734497432981,-500.0,0.00024657,6]
[345824284,1734497432994,-1028.22,0.00024657,2]
[345824286,1734497433004,-500.0,0.00024657,6]
[345824288,1734497433013,-500.0,0.00024657,6]
[345824290,1734497433023,-500.0,0.00024657,6]
[345824292,1734497433033,-500.0,0.00024657,6]
[345824294,1734497433044,-1534.88,0.00024657,6]
[345824296,1734497433053,-500.0,0.00024657,6]
[345824298,1734497433063,-500.0,0.00024657,6]
[345824300,1734497433073,-500.0,0.00024657,6]
[345824302,1734497433083,-500.0,0.00024657,6]
[345824304,1734497433093,-500.0,0.00024657,6]
[345824306,1734497433103,-500.0,0.00024657,6]
[345824308,1734497433113,-500.0,0.00024657,6]
[345824310,1734497433123,-500.0,0.00024657,6]
[345824312,1734497433134,-500.0,0.00024657,6]
[345824314,1734497433144,-545.45,0.00024657,6]
[345824316,1734497433154,-580.03,0.00024657,6]
[345824319,1734497433164,-548.64,0.00024657,6]
[345824320,1734497433175,-765.28,0.00024657,2]
[345824322,1734497433185,-500.0,0.00024657,6]
[345824323,1734497433194,-500.0,0.00024657,6]
[345824324,1734497433206,-646.9,0.00024657,6]
[345824326,1734497433217,-500.0,0.00024657,6]
[345824328,1734497433227,-500.0,0.00024657,6]
[345824330,1734497433238,-800.4,0.00024657,6]
[345824332,1734497433248,-500.0,0.00024657,6]
[345824335,1734497433299,-500.0,0.00024657,6]
[345824336,1734497433310,-500.0,0.00024657,6]
[345824337,1734497433321,-168.0,0.00024657,6]
[345824338,1734497433331,-500.0,0.00024657,6]
[345824339,1734497433342,-500.0,0.00024657,6]
[345824340,1734497433352,-500.0,0.00024657,6]
[345824341,1734497433363,-1127.99,0.00024657,6]
[345824342,1734497433373,-500.0,0.00024657,6]
[345824343,1734497433383,-666.76,0.00024657,6]
[345824344,1734497433393,-611.16,0.00024657,6]
[345824345,1734497433403,-500.0,0.00024657,6]
[345824346,1734497433412,-500.0,0.00024657,6]
[345824347,1734497433422,-500.0,0.00024657,6]
[345824348,1734497433431,-504.07004246,0.00024657,2]
[345824349,1734497433441,-500.0,0.00024657,6]
[345824350,1734497433451,-500.0,0.00024657,6]
[345824351,1734497433461,-500.0,0.00024657,6]
[345824352,1734497433471,-531.88141171,0.00024657,6]
[345824353,1734497433480,-500.0,0.00024657,6]
[345824354,1734497433492,-500.0,0.00024657,6]
[345824355,1734497433501,-504.04436432,0.00024657,6]
[345824356,1734497433512,-500.0,0.00024657,6]
[345824357,1734497433521,-500.0,0.00024657,6]
[345824358,1734497433531,-500.0,0.00024657,6]
[345824359,1734497433542,-500.0,0.00024657,6]
[345824360,1734497433552,-500.0,0.00024657,6]
[345824361,1734497433562,-500.0,0.00024657,6]
[345824362,1734497433572,-262.98465909,0.00024657,6]
[345824363,1734497433584,-500.0,0.00024657,6]
[345824364,1734497433594,-500.0,0.00024657,6]
[345824365,1734497433604,-500.0,0.00024657,6]
[345824366,1734497433615,-598.23,0.00024657,6]
[345824367,1734497433625,-552.64,0.00024657,6]
[345824368,1734497433635,-500.0,0.00024657,6]
[345824369,1734497433644,-898.79,0.00024657,6]
[345824370,1734497433654,-500.0,0.00024657,6]
[345824371,1734497433665,-1217.23,0.00024657,6]
[345824372,1734497433675,-500.0,0.00024657,6]
[345824373,1734497433686,-500.0,0.00024657,6]
[345824374,1734497433696,-500.0,0.00024657,6]
[345824375,1734497433706,-551.28,0.00024657,6]
[345824376,1734497433716,-500.0,0.00024657,6]
[345824377,1734497433726,-1897.72667457,0.00024657,2]
[345824378,1734497433747,-542.55702,0.00024657,2]
[345824379,1734497433767,-159.36630543,0.00024657,2]
[345824380,1734497433778,-500.0,0.00024657,6]
[345824381,1734497433788,-500.0,0.00024657,6]
[345824382,1734497433798,-118.19383577,0.00024657,2]
[345824400,1734497438063,-381.80616423,0.00024657,2]
[345824401,1734497438074,-500.0,0.00024657,6]
[345824402,1734497438083,-500.0,0.00024657,6]
[345824403,1734497438093,-500.0,0.00024657,6]
[345824404,1734497438102,-500.0,0.00024657,6]
[345824405,1734497438112,-1005.83,0.00024657,6]
[345824406,1734497438121,-209.65337518,0.00024657,6]
[345824407,1734497438131,-500.0,0.00024657,6]
[345824408,1734497438141,-500.0,0.00024657,6]
[345824409,1734497438151,-500.0,0.00024657,6]
[345824410,1734497438160,-500.0,0.00024657,6]
[345824411,1734497438170,-500.0,0.00024657,6]
[345824412,1734497438179,-500.0,0.00024657,6]
[345824413,1734497438189,-500.0,0.00024657,6]
[345824414,1734497438199,-1160.2,0.00024657,6]
[345824415,1734497438209,-500.0,0.00024657,6]
[345824416,1734497438219,-500.0,0.00024657,6]
[345824417,1734497438228,-500.0,0.00024657,6]
[345824418,1734497438238,-1446.38,0.00024657,6]
[345824419,1734497438249,-500.0,0.00024657,6]
[345824420,1734497438259,-500.0,0.00024657,6]
[345824421,1734497438269,-500.0,0.00024657,6]
[345824422,1734497438278,-500.0,0.00024657,6]
[345824423,1734497438288,-500.0,0.00024657,6]
[345824424,1734497438297,-500.0,0.00024657,6]
[345824425,1734497438307,-542.86098506,0.00024657,6]
[345824426,1734497438316,-816.71,0.00024657,6]
[345824427,1734497438326,-500.0,0.00024657,6]
[345824428,1734497438335,-500.0,0.00024657,6]
[345824429,1734497438345,-568.41,0.00024657,6]
[345824430,1734497438354,-500.0,0.00024657,6]
[345824431,1734497438364,-500.0,0.00024657,6]
[345824432,1734497438373,-500.0,0.00024657,6]
[345824433,1734497438382,-239.53620553,0.00024657,6]
[345824434,1734497438394,-390.57379447,0.00024657,6]
[345824435,1734497438404,-99.28620553,0.00024657,6]
[345824446,1734497440095,-567.87379447,0.00024657,6]
[345824448,1734497440104,-500.0,0.00024657,6]
[345824450,1734497440114,-3698.38,0.00024657,6]
[345824452,1734497440123,-649.25479481,0.00024657,6]
[345824454,1734497440133,-500.0,0.00024657,6]
[345824456,1734497440143,-500.0,0.00024657,6]
[345824458,1734497440152,-507.53940615,0.00024657,6]
[345824460,1734497440161,-2678.31,0.00024657,6]
[345824462,1734497440172,-500.0,0.00024657,6]
[345824464,1734497440182,-500.0,0.00024657,6]
[345824467,1734497440192,-59975.48,0.00024657,6]
[345824470,1734497440202,-500.0,0.00024657,6]
[345824473,1734497440211,-4470.58,0.00024657,6]
[345824476,1734497440221,-7766.52,0.00024657,6]
[345824479,1734497440231,-500.0,0.00024657,6]
[345824482,1734497440242,-500.0,0.00024657,6]
[345824485,1734497440255,-500.0,0.00024657,6]
[345824488,1734497440264,-500.0,0.00024657,6]
[345824490,1734497440273,-500.0,0.00024657,6]
[345824492,1734497440284,-270.31305682,0.00024657,6]
[345824494,1734497440293,-500.0,0.00024657,6]
[345824496,1734497440303,-500.0,0.00024657,6]
[345824498,1734497440314,-500.0,0.00024657,6]
[345824500,1734497440323,-975.53,0.00024657,6]
[345824502,1734497440333,-848.58,0.00024657,6]
[345824504,1734497440343,-500.0,0.00024657,6]
[345824506,1734497440353,-2247.39,0.00024657,6]
[345824508,1734497440364,-500.0,0.00024657,6]
[345824511,1734497440374,-500.0,0.00024657,6]
[345824512,1734497440383,-614.98,0.00024657,6]
[345824514,1734497440393,-500.0,0.00024657,6]
[345824516,1734497440403,-500.0,0.00024657,6]
[345824518,1734497440413,-4570.32,0.00024657,6]
[345824520,1734497440422,-500.0,0.00024657,6]
[345824523,1734497440432,-206.17513855,0.00024657,6]
[345824525,1734497440442,-650.21,0.00024657,6]
[345824527,1734497440451,-3281.1976142,0.00024657,6]
[345824775,1734497443040,-537.99964425,0.00024657,6]
[345825033,1734497446137,-151.0,0.00024656,2]
[345825036,1734497446147,-656.33540352,0.00024657,6]
[345826489,1734497460935,342.084752,0.00013973,2]
[345828246,1734497568064,503.0,0.00015,2]
[345828248,1734497816459,2094.27,0.0002556,120]
[345828249,1734497840035,2094.27,0.0002556,120]
[345828250,1734497942433,176.45,0.000255,120]
[345828251,1734498027059,15876.0,0.0002,2]
[345828275,1734498355342,335.31742,0.00013973,2]
[345828287,1734498632467,-2634.47002655,0.00020347,2]
[345828288,1734498632477,-335.31742,0.00020447,2]
[345828289,1734498632486,-194.7094779,0.00021546,2]
[345828290,1734498632494,-171.175589,0.00021698,2]
[345828291,1734498632503,-1917.3553186,0.00021705,2]
[345828292,1734498632511,-297.073833,0.00022,2]
[345828293,1734498632518,-3901.44356364,0.00022641,2]
[345828294,1734498632525,-300.0,0.00022669,2]
[345828295,1734498632533,-300.0,0.00022669,2]
[345828296,1734498632541,-4036.63983679,0.0002267,2]
[345828297,1734498632548,-194.014444,0.00022747,2]
[345828298,1734498632555,-787.12871183,0.00022878,2]
[345828299,1734498632562,-18069.16271421,0.00022947,2]
[345828300,1734498632572,-1040.61724395,0.00022947,2]
[345828301,1734498632580,-3806.46284758,0.00022947,2]
[345828302,1734498632588,-1983.75719426,0.00022947,2]
[345828303,1734498632596,-452.9153962,0.00022978,2]
[345828304,1734498632604,-248.567,0.00023246,2]
[345828305,1734498632612,-533.0,0.00023246,2]
[345828306,1734498632618,-2294.55,0.00023246,2]
[345828307,1734498632625,-2369.0,0.00023246,2]
[345828308,1734498632633,-787.12871179,0.00023378,2]
[345828309,1734498632639,-415.69,0.0002343,2]
[345828310,1734498632650,-787.12871179,0.00023877,2]
[345828311,1734498632657,-1729.34767646,0.00024,2]
[345828312,1734498632664,-787.12871179,0.00024377,2]
[345828313,1734498632671,-1000.0,0.000244,2]
[345828314,1734498632677,-1000.0,0.00024428,2]
[345828315,1734498632684,-142.07766554,0.00024434,2]
[345828361,1734498638256,-857.92233446,0.00024434,2]
[345828363,1734498638266,-1000.0,0.00024444,2]
[345828365,1734498638275,-64.15766553,0.00024445,2]
[345828383,1734498638417,-935.84233447,0.00024445,2]
[345828385,1734498638427,-115.39916003,0.0002445,2]
[345829156,1734498646258,-20724.5491108,0.0002445,2]
[345832650,1734499215855,313.387233,0.00013973,2]
[345832659,1734499710905,975.26990124,0.0002,2]
[345832703,1734499832509,-313.387233,0.00020447,2]
[345832704,1734499832519,-484.0,0.00022,2]
[345832705,1734499832530,-1491.00369985,0.00022,2]
[345832706,1734499832539,-484.0,0.00022192,2]
[345832707,1734499832548,-484.0,0.00023014,2]
[345832708,1734499832557,-300.0,0.00023198,2]
[345832709,1734499832567,-2139.64183243,0.00023199,2]
[345832710,1734499832584,-2267.67880353,0.00023199,2]
[345832715,1734499839728,-4337.11998654,0.00023199,2]
[345832716,1734499839738,-398.375,0.0002343,2]
[345832717,1734499839747,-488.0,0.00024164,2]
[345832718,1734499839757,-2992.40075806,0.00024213,2]
[345832719,1734499839766,-393.56435593,0.0002435,2]
[345832720,1734499839776,-1000.0,0.00024384,2]
[345832721,1734499839786,-4110.50358255,0.00024449,7]
[345832742,1734499840491,-2173.13800273,0.00024449,7]
[345832744,1734499840501,-2488.15,0.00024449,2]
[345832745,1734499840510,-3396.79461062,0.0002445,2]
[345832746,1734499840520,-21295.31526439,0.0002445,2]
[345832747,1734499840529,-22731.98746202,0.0002445,2]
[345832748,1734499840549,-5448.53041059,0.0002445,2]
[345832803,1734499846382,-5199.5,0.0002445,2]
[345832806,1734499846395,-2274.6126568,0.0002445,2]
[345832810,1734499846422,-79297.30204482,0.0002445,2]